lending/lending_fUSD_20241120
["ID","MTS","AMOUNT","RATE_DAILY","PERIOD"]
[342799016,1732143064125,-1450.31,0.00055068,120]
[342799017,1732143064135,-533.88,0.00055068,120]
[342799018,1732143064145,-2144.4,0.00055068,120]
[342799019,1732143064155,-548.14,0.00055068,120]
[342799020,1732143064165,-500.0,0.00055068,120]
[342799021,1732143064175,-1032.14,0.00055068,120]
[342799022,1732143064185,-500.0,0.00055068,120]
[342799023,1732143064195,-14474.38,0.00055068,120]
[342799024,1732143064204,-500.0,0.00055068,120]
[342799025,1732143064214,-16729.96,0.00055068,120]
[342799026,1732143064224,-500.0,0.00055068,120]
[342799027,1732143064233,-500.0,0.00055068,120]
[342799028,1732143064243,-500.0,0.00055068,120]
[342799029,1732143064253,-500.0,0.00055068,120]
[342799030,1732143064262,-500.0,0.00055068,120]
[342799031,1732143064272,-2375.8,0.00055068,120]
[342799032,1732143064282,-500.0,0.00055068,120]
[342799033,1732143064291,-500.0,0.00055068,120]
[342799034,1732143064300,-726.78,0.00055068,120]
[342799035,1732143064310,-3517.73,0.00055068,120]
[342799036,1732143064319,-500.0,0.00055068,120]
[342799037,1732143064328,-500.0,0.00055068,120]
[342799038,1732143064337,-500.0,0.00055068,120]
[342799039,1732143064347,-2949.54,0.00055068,120]
[342799040,1732143064356,-500.0,0.00055068,120]
[342799041,1732143064366,-680.36,0.00055068,120]
[342799042,1732143064375,-629.45,0.00055068,120]
[342799043,1732143064384,-500.0,0.00055068,120]
[342799044,1732143064394,-1835.32,0.00055068,120]
[342799045,1732143064405,-500.0,0.00055068,120]
[342799046,1732143064414,-500.0,0.00055068,120]
[342799047,1732143064424,-1077.92,0.00055068,120]
[342799048,1732143064434,-567.38,0.00055068,120]
[342799049,1732143064443,-1270.02,0.00055068,120]
[342799050,1732143064452,-1080.78,0.00055068,120]
[342799051,1732143064462,-500.0,0.00055068,120]
[342799052,1732143064472,-500.0,0.00055068,120]
[342799053,1732143064481,-500.0,0.00055068,120]
[342799054,1732143064490,-500.0,0.00055068,120]
[342799055,1732143064499,-794.46,0.00055068,120]
[342799056,1732143064508,-836.47,0.00055068,120]
[342799057,1732143064518,-730.91,0.00055068,120]
[342799058,1732143064527,-1006.93,0.00055068,120]
[342799059,1732143064536,-877.06,0.00055068,120]
[342799060,1732143064545,-397.06069866,0.00055068,120]
[342799061,1732143064554,-873.31,0.00055068,120]
[342799062,1732143064563,-500.0,0.00055068,120]
[342799063,1732143064572,-500.0,0.00055068,120]
[342799064,1732143064583,-897.49,0.00055068,120]
[342799065,1732143064592,-5067.66,0.00055068,120]
[342799066,1732143064602,-500.0,0.00055068,120]
[342799067,1732143064611,-501.0080465,0.00055068,120]
[342799068,1732143064621,-500.0,0.00055068,120]
[342799069,1732143064631,-500.0,0.00055068,120]
[342799070,1732143064640,-500.0,0.00055068,120]
[342799071,1732143064651,-615.04,0.00055068,120]
[342799072,1732143064659,-1213.36,0.00055068,120]
[342799073,1732143064669,-537.82,0.00055068,120]
[342799074,1732143064678,-500.0,0.00055068,120]
[342799075,1732143064688,-500.0,0.00055068,120]
[342799076,1732143064698,-500.0,0.00055068,120]
[342799077,1732143064707,-500.0,0.00055068,120]
[342799078,1732143064717,-1001.49,0.00055068,120]
[342799079,1732143064726,-911.56,0.00055068,120]
[342799080,1732143064734,-1621.15,0.00055068,120]
[342799081,1732143064744,-490.54582579,0.00055068,120]
[342799082,1732143064753,-1004.9,0.00055068,120]
[342799083,1732143064763,-500.0,0.00055068,120]
[342799084,1732143064772,-500.0,0.00055068,120]
[342799085,1732143064783,-1363.03,0.00055068,120]
[342799086,1732143064794,-670.6,0.00055068,120]
[342799087,1732143064803,-4519.72,0.00055068,120]
[342799088,1732143064814,-681.14,0.00055068,120]
[342799089,1732143064823,-597.02,0.00055068,120]
[342799090,1732143064833,-500.0,0.00055068,120]
[342799091,1732143064842,-501.48089051,0.00055068,120]
[342799092,1732143064852,-1529.3,0.00055068,120]
[342799093,1732143064862,-500.0,0.00055068,120]
[342799094,1732143064873,-2209.36,0.00055068,120]
[342799095,1732143064884,-500.0,0.00055068,120]
[342799096,1732143064893,-500.0,0.00055068,120]
[342799097,1732143064904,-500.0,0.00055068,120]
[342799098,1732143064913,-500.0,0.00055068,120]
[342799099,1732143064922,-5382.48,0.00055068,120]
[342799100,1732143064931,-611.06849277,0.00055068,120]
[342799101,1732143064940,-640.41,0.00055068,120]
[342799102,1732143064952,-1045.28,0.00055068,120]
[342799103,1732143064962,-500.0,0.00055068,120]
[342799104,1732143064971,-359.68987698,0.00055068,120]
[342799105,1732143064981,-616.13835965,0.00055068,120]
[342799106,1732143064990,-500.0,0.00055068,120]
[342799107,1732143065000,-545.81143707,0.00055068,120]
[342799108,1732143065010,-3525.53,0.00055068,120]
[342799109,1732143065019,-500.0,0.00055068,120]
[342799110,1732143065028,-500.0,0.00055068,120]
[342799111,1732143065037,-5113.62,0.00055068,120]
[342799112,1732143065047,-5128.91,0.00055068,120]
[342799113,1732143065056,-909.91,0.00055068,120]
[342799114,1732143065065,-500.0,0.00055068,120]
[342799115,1732143065075,-500.0,0.00055068,120]
[342799116,1732143065084,-500.0,0.00055068,120]
[342799117,1732143065094,-500.0,0.00055342,120]
[342799118,1732143065103,-500.0,0.00055342,120]
[342799119,1732143065112,-500.0,0.00055342,120]
[342799120,1732143065122,-593.37080796,0.00055342,120]
[342799121,1732143065131,-500.0,0.00055342,120]
[342799122,1732143065141,-500.0,0.00055342,120]
[342799123,1732143065152,-500.0,0.00055342,120]
[342799124,1732143065161,-500.0,0.00055342,120]
[342799125,1732143065171,-949.28,0.00055342,120]
[342799126,1732143065180,-588.18,0.00055342,120]
[342799127,1732143065189,-500.0,0.00055342,120]
[342799128,1732143065198,-615.76192672,0.00055342,120]
[342799129,1732143065208,-500.0,0.00055342,120]
[342799130,1732143065217,-500.0,0.00055342,120]
[342799131,1732143065226,-500.0,0.00055342,120]
[342799132,1732143065235,-174.71467937,0.00055342,120]
[342799133,1732143065244,-500.0,0.00055342,120]
[342799134,1732143065254,-216.87,0.00055342,7]
[342799135,1732143065263,-500.0,0.00055342,120]
[342799136,1732143065272,-500.0,0.00055342,120]
[342799137,1732143065282,-1647.84,0.00055342,120]
[342799138,1732143065291,-500.0,0.00055342,120]
[342799139,1732143065299,-672.22,0.00055342,120]
[342799140,1732143065308,-901.77,0.00055342,120]
[342799141,1732143065317,-500.0,0.00055342,120]
[342799142,1732143065326,-749.97,0.00055342,120]
[342799143,1732143065335,-500.0,0.00055342,120]
[342799144,1732143065344,-500.0,0.00055342,120]
[342799145,1732143065352,-1584.28,0.00055342,120]
[342799146,1732143065361,-500.0,0.00055342,120]
[342799147,1732143065370,-500.0,0.00055342,120]
[342799148,1732143065378,-500.0,0.00055342,120]
[342799149,1732143065387,-698.15,0.00055342,120]
[342799150,1732143065396,-500.0,0.00055342,120]
[342799151,1732143065413,-500.0,0.00055342,120]
[342799152,1732143065422,-355.10751386,0.00055342,120]
[342799153,1732143065431,-500.0,0.00055342,120]
[342799154,1732143065440,-500.0,0.00055342,120]
[342799155,1732143065449,-500.0,0.00055342,120]
[342799156,1732143065458,-500.0,0.00055342,120]
[342799157,1732143065467,-500.0,0.00055342,120]
[342799158,1732143065476,-500.0,0.00055342,120]
[342799159,1732143065486,-500.0,0.00055342,120]
[342799160,1732143065495,-500.0,0.00055342,120]
[342799161,1732143065504,-550.21,0.00055342,120]
[342799162,1732143065513,-2000.0,0.00055342,30]
[342799163,1732143065522,-838.1,0.00055342,120]
[342799164,1732143065531,-500.0,0.00055342,120]
[342799165,1732143065539,-500.0,0.00055342,120]
[342799166,1732143065549,-500.0,0.00055342,120]
[342799167,1732143065557,-678.26,0.00055342,120]
[342799168,1732143065568,-500.0,0.00055342,120]
[342799169,1732143065577,-500.0,0.00055342,120]
[342799170,1732143065586,-500.0,0.00055342,120]
[342799171,1732143065596,-500.0,0.00055342,120]
[342799172,1732143065607,-528.71,0.00055342,120]
[342799173,1732143065616,-577.89,0.00055342,120]
[342799174,1732143065625,-1058.89,0.00055342,120]
[342799175,1732143065634,-229.87348046,0.00055342,120]
[342799176,1732143065643,-211.96459578,0.00055342,120]
[342799177,1732143065659,-500.0,0.00055342,120]
[342799178,1732143065668,-500.0,0.00055342,120]
[342799179,1732143065678,-500.0,0.00055342,120]
[342799180,1732143065687,-500.0,0.00055342,120]
[342799181,1732143065696,-500.0,0.00055342,120]
[342799182,1732143065705,-500.0,0.00055342,120]
[342799183,1732143065714,-500.0,0.00055342,120]
[342799184,1732143065723,-516.05,0.00055342,120]
[342799185,1732143065732,-500.0,0.00055342,120]
[342799186,1732143065741,-1582.8,0.00055342,120]
[342799187,1732143065750,-512.91,0.00055342,120]
[342799188,1732143065759,-910.7,0.00055342,120]
[342799189,1732143065769,-500.0,0.00055342,120]
[342799190,1732143065778,-686.07,0.00055342,120]
[342799191,1732143065787,-500.0,0.00055342,120]
[342799192,1732143065796,-718.84,0.00055342,120]
[342799193,1732143065806,-500.0,0.00055342,120]
[342799194,1732143065815,-523.06681624,0.00055342,120]
[342799195,1732143065824,-566.64,0.00055342,120]
[342799196,1732143065834,-502.07567976,0.00055342,120]
[342799197,1732143065844,-500.0,0.00055342,120]
[342799198,1732143065853,-500.0,0.00055342,120]
[342799199,1732143065862,-622.27733905,0.00055342,120]
[342799200,1732143065872,-581.13,0.00055342,120]
[342799201,1732143065883,-500.0,0.00055342,120]
[342799202,1732143065892,-500.0,0.00055342,120]
[342799203,1732143065903,-558.19,0.00055342,120]
[342799204,1732143065913,-500.0,0.00055342,120]
[342799205,1732143065922,-1275.31,0.00055342,120]
[342799206,1732143065931,-500.0,0.00055342,120]
[342799207,1732143065941,-500.0,0.00055342,120]
[342799208,1732143065951,-500.0,0.00055342,120]
[342799209,1732143065960,-646.55,0.00055342,120]
[342799210,1732143065969,-500.0,0.00055342,120]
[342799211,1732143065979,-889.52,0.00055342,120]
[342799212,1732143065988,-500.0,0.00055342,120]
[342799213,1732143065997,-1844.67,0.00055342,120]
[342799214,1732143066008,-1345.16,0.00055342,120]
[342799215,1732143066018,-500.0,0.00055342,120]
[342799216,1732143066027,-500.0,0.00055342,120]
[342799217,1732143066037,-1354.36,0.00055342,120]
[342799218,1732143066048,-500.0,0.00055342,120]
[342799219,1732143066058,-500.0,0.00055342,120]
[342799220,1732143066068,-500.0,0.00055342,120]
[342799221,1732143066078,-1126.54,0.00055342,120]
[342799222,1732143066088,-810.54,0.00055342,120]
[342799223,1732143066097,-1630.49,0.00055342,120]
[342799224,1732143066107,-500.0,0.00055342,120]
[342799225,1732143066116,-500.0,0.00055342,120]
[342799226,1732143066125,-1061.11,0.00055342,120]
[342799227,1732143066134,-1539.37,0.00055342,120]
[342799228,1732143066144,-500.0,0.00055342,120]
[342799229,1732143066156,-500.0,0.00055342,120]
[342799230,1732143066166,-500.0,0.00055342,120]
[342799231,1732143066176,-616.53,0.00055342,120]
[342799232,1732143066185,-500.0,0.00055342,120]
[342799233,1732143066195,-1163.7,0.00055342,120]
[342799234,1732143066204,-500.0,0.00055342,120]
[342799235,1732143066214,-500.0,0.00055342,120]
[342799236,1732143066223,-500.0,0.00055342,120]
[342799237,1732143066232,-768.83,0.00055342,120]
[342799238,1732143066242,-1697.48,0.00055342,120]
[342799239,1732143066251,-500.0,0.00055342,120]
[342799240,1732143066260,-500.0,0.00055342,120]
[342799241,1732143066270,-1494.04,0.00055342,120]
[342799242,1732143066279,-583.76,0.00055342,120]
[342799243,1732143066289,-500.0,0.00055342,120]
[342799244,1732143066298,-442.91559029,0.00055342,120]
[342799245,1732143066308,-500.0,0.00055342,120]
[342799246,1732143066317,-500.0,0.00055342,120]
[342799247,1732143066327,-500.0,0.00055342,120]
[342799248,1732143066336,-1417.12,0.00055342,120]
[342799249,1732143066346,-500.0,0.00055342,120]
[342799250,1732143066356,-500.0,0.00055342,120]
[342799251,1732143066365,-500.0,0.00055342,120]
[342799252,1732143066375,-514.86,0.00055342,120]
[342799253,1732143066384,-580.28,0.00055342,120]
[342799254,1732143066393,-500.0,0.00055342,120]
[342799255,1732143066404,-500.0,0.00055342,120]
[342799256,1732143066413,-500.0,0.00055342,120]
[342799257,1732143066422,-500.0,0.00055342,120]
[342799258,1732143066432,-500.0,0.00055342,120]
[342799259,1732143066441,-625.85,0.00055342,120]
[342799260,1732143066450,-500.0,0.00055342,120]
[342799261,1732143066459,-500.0,0.00055342,120]
[342799262,1732143066468,-500.0,0.00055342,120]
[342799263,1732143066478,-835.63,0.00055342,120]
[342799264,1732143066488,-500.0,0.00055342,120]
[342799265,1732143066497,-1642.42,0.00055342,7]
[342799266,1732143066507,-500.0,0.00055342,120]
[342799267,1732143066517,-1168.69,0.00055342,120]
[342799268,1732143066528,-500.0,0.00055342,14]
[342799269,1732143066538,-500.0,0.00055342,120]
[342799270,1732143066548,-785.67,0.00055342,120]
[342799271,1732143066557,-526.48,0.00055342,120]
[342799272,1732143066567,-500.0,0.00055342,120]
[342799273,1732143066579,-1791.8,0.00055342,120]
[342799274,1732143066589,-500.0,0.00055342,120]
[342799275,1732143066598,-500.0,0.00055342,120]
[342799276,1732143066608,-500.0,0.00055342,120]
[342799277,1732143066619,-500.0,0.00055342,30]
[342799278,1732143066627,-500.0,0.00055342,120]
[342799279,1732143066636,-500.0,0.00055342,120]
[342799280,1732143066646,-500.0,0.00055342,120]
[342799281,1732143066657,-764.29,0.00055342,120]
[342799282,1732143066666,-500.0,0.00055342,120]
[342799283,1732143066675,-937.69,0.00055342,120]
[342799284,1732143066684,-830.14,0.00055342,120]
[342799285,1732143066692,-500.0,0.00055342,58]
[342799286,1732143066701,-500.0,0.00055342,120]
[342799287,1732143066711,-500.0,0.00055342,120]
[342799288,1732143066720,-1926.82,0.00055342,120]
[342799289,1732143066729,-500.0,0.00055342,30]
[342799290,1732143066738,-500.0,0.00055342,120]
[342799291,1732143066747,-513.97,0.00055342,120]
[342799292,1732143066758,-500.0,0.00055342,120]
[342799293,1732143066769,-1258.94,0.00055342,120]
[342799294,1732143066779,-615.91,0.00055342,120]
[342799295,1732143066788,-500.0,0.00055342,120]
[342799296,1732143066797,-739.53,0.00055342,120]
[342799297,1732143066807,-500.0,0.00055342,120]
[342799298,1732143066817,-2364.09,0.00055342,120]
[342799299,1732143066827,-322.51246705,0.00055342,120]
[342799300,1732143066836,-500.0,0.00055342,120]
[342799301,1732143066846,-500.0,0.00055342,120]
[342799302,1732143066856,-500.0,0.00055342,120]
[342799303,1732143066865,-1516.8,0.00055342,120]
[342799304,1732143066878,-1222.69,0.00055342,120]
[342799305,1732143066892,-644.03,0.00055342,120]
[342799306,1732143066904,-689.07,0.00055342,120]
[342799307,1732143066914,-500.0,0.00055342,120]
[342799308,1732143066923,-2792.61,0.00055342,120]
[342799309,1732143066932,-500.0,0.00055342,120]
[342799310,1732143066942,-500.0,0.00055342,120]
[342799311,1732143066954,-500.0,0.00055342,120]
[342799312,1732143066965,-598.66,0.00055342,120]
[342799313,1732143066974,-500.0,0.00055342,120]
[342799314,1732143066986,-500.0,0.00055342,120]
[342799315,1732143066995,-500.0,0.00055342,120]
[342799316,1732143067004,-696.8,0.00055342,120]
[342799317,1732143067013,-517.71,0.00055342,120]
[342799318,1732143067023,-500.0,0.00055342,120]
[342799319,1732143067032,-670.6,0.00055342,120]
[342799320,1732143067042,-1622.41,0.00055342,120]
[342799321,1732143067052,-500.0,0.00055342,120]
[342799322,1732143067061,-732.47,0.00055342,120]
[342799323,1732143067071,-500.0,0.00055342,120]
[342799324,1732143067081,-500.0,0.00055342,120]
[342799325,1732143067090,-500.0,0.00055342,120]
[342799326,1732143067099,-500.0,0.00055342,120]
[342799327,1732143067108,-3752.95,0.00055342,120]
[342799328,1732143067118,-500.0,0.00055342,120]
[342799329,1732143067127,-694.86,0.00055342,120]
[342799330,1732143067136,-500.0,0.00055342,120]
[342799331,1732143067146,-500.0,0.00055342,120]
[342799332,1732143067156,-527.72,0.00055342,120]
[342799333,1732143067165,-2754.45,0.00055342,120]
[342799334,1732143067175,-500.0,0.00055342,120]
[342799335,1732143067184,-500.0,0.00055342,60]
[342799336,1732143067194,-500.0,0.00055342,120]
[342799337,1732143067203,-777.0,0.00055342,120]
[342799338,1732143067212,-750.37,0.00055342,120]
[342799339,1732143067222,-1552.42,0.00055342,120]
[342799340,1732143067231,-586.88,0.00055342,120]
[342799341,1732143067240,-500.0,0.00055342,120]
[342799342,1732143067250,-546.79,0.00055342,120]
[342799343,1732143067259,-500.0,0.00055342,120]
[342799344,1732143067268,-500.0,0.00055342,120]
[342799345,1732143067277,-1410.35,0.00055342,120]
[342799346,1732143067286,-622.81,0.00055342,120]
[342799347,1732143067295,-500.0,0.00055342,120]
[342799348,1732143067304,-500.0,0.00055342,120]
[342799349,1732143067313,-1078.42,0.00055342,120]
[342799350,1732143067322,-2348.91,0.00055342,120]
[342799351,1732143067331,-500.0,0.00055342,120]
[342799352,1732143067341,-1803.88,0.00055342,120]
[342799353,1732143067351,-875.42,0.00055342,120]
[342799354,1732143067361,-501.48971104,0.00055342,120]
[342799355,1732143067371,-500.0,0.00055342,120]
[342799356,1732143067381,-908.45,0.00055342,120]
[342799357,1732143067390,-384.34765124,0.00055342,120]
[342799358,1732143067403,-1745.98,0.00055342,120]
[342799359,1732143067412,-500.0,0.00055342,120]
[342799360,1732143067421,-643.69,0.00055342,120]
[342799361,1732143067431,-503.80983954,0.00055342,120]
[342799362,1732143067440,-659.6,0.00055342,120]
[342799363,1732143067450,-500.0,0.00055342,120]
[342799364,1732143067459,-1212.54,0.00055342,120]
[342799365,1732143067469,-500.0,0.00055342,120]
[342799366,1732143067478,-2042.25,0.00055342,120]
[342799367,1732143067487,-828.06,0.00055342,120]
[342799368,1732143067496,-500.0,0.00055342,120]
[342799369,1732143067506,-500.0,0.00055342,120]
[342799370,1732143067515,-500.0,0.00055342,120]
[342799371,1732143067524,-646.63,0.00055342,120]
[342799372,1732143067533,-806.31,0.00055342,120]
[342799373,1732143067542,-500.0,0.00055342,120]
[342799374,1732143067552,-1287.88,0.00055342,120]
[342799375,1732143067561,-500.0,0.00055342,120]
[342799376,1732143067570,-1410.77,0.00055342,120]
[342799377,1732143067579,-500.0,0.00055342,120]
[342799378,1732143067588,-500.0,0.00055342,120]
[342799379,1732143067597,-500.0,0.00055342,120]
[342799380,1732143067607,-500.0,0.00055342,120]
[342799381,1732143067616,-623.91,0.00055342,120]
[342799382,1732143067625,-500.0,0.00055342,120]
[342799383,1732143067634,-500.0,0.00055342,120]
[342799384,1732143067757,-500.0,0.00055342,120]
[342799385,1732143067778,-1000.52,0.00055342,120]
[342799386,1732143067788,-766.21,0.00055342,120]
[342799387,1732143067797,-500.0,0.00055342,120]
[342799388,1732143067807,-500.0,0.00055342,120]
[342799389,1732143067816,-500.0,0.00055342,120]
[342799390,1732143067826,-1013.49,0.00055342,120]
[342799391,1732143067835,-500.0,0.00055342,120]
[342799392,1732143067845,-811.56,0.00055342,120]
[342799393,1732143067854,-500.0,0.00055342,120]
[342799394,1732143067862,-500.0,0.00055342,120]
[342799395,1732143067872,-3361.2,0.00055342,120]
[342799396,1732143067887,-633.81,0.00055342,120]
[342799397,1732143067897,-1185.33,0.00055342,120]
[342799398,1732143067909,-590.45295267,0.00055342,120]
[342799399,1732143067920,-567.26673546,0.00055342,120]
[342799400,1732143067929,-838.48,0.00055342,120]
[342799401,1732143067938,-1382.6,0.00055342,120]
[342799402,1732143067948,-500.0,0.00055342,120]
[342799403,1732143067959,-500.0,0.00055342,120]
[342799404,1732143067971,-500.0,0.00055342,120]
[342799405,1732143067981,-2198.56,0.00055342,120]
[342799406,1732143067991,-500.0,0.00055342,120]
[342799407,1732143068000,-500.0,0.00055342,120]
[342799408,1732143068010,-658.16,0.00055342,120]
[342799409,1732143068019,-500.0,0.00055342,120]
[342799410,1732143068029,-160.14703516,0.00055342,120]
[342799411,1732143068038,-500.0,0.00055342,120]
[342799412,1732143068048,-500.0,0.00055342,120]
[342799413,1732143068058,-500.0,0.00055342,120]
[342799414,1732143068067,-500.0,0.00055342,120]
[342799415,1732143068076,-581.06,0.00055342,120]
[342799416,1732143068086,-500.0,0.00055342,120]
[342799417,1732143068095,-843.03,0.00055342,120]
[342799418,1732143068105,-500.0,0.00055342,120]
[342799419,1732143068115,-665.72,0.00055342,120]
[342799420,1732143068124,-500.0,0.00055342,120]
[342799421,1732143068135,-789.82,0.00055342,120]
[342799422,1732143068144,-660.24,0.00055342,120]
[342799423,1732143068155,-773.4,0.00055342,120]
[342799424,1732143068165,-296.6115742,0.00055342,120]
[342799425,1732143068174,-500.0,0.00055342,120]
[342799426,1732143068184,-500.0,0.00055342,120]
[342799427,1732143068194,-504.35,0.00055342,120]
[342799428,1732143068204,-2411.2,0.00055342,120]
[342799429,1732143068213,-500.0,0.00055342,120]
[342799430,1732143068223,-3997.56,0.00055342,120]
[342799431,1732143068232,-500.0,0.00055342,120]
[342799432,1732143068242,-500.0,0.00055342,120]
[342799433,1732143068251,-500.0,0.00055342,120]
[342799434,1732143068260,-500.0,0.00055342,120]
[342799435,1732143068270,-220.349852,0.00055342,120]
[342799436,1732143068279,-155.055593,0.00055342,120]
[342799437,1732143068289,-178.477726,0.00055342,120]
[342799438,1732143068298,-559.66,0.00055342,120]
[342799439,1732143068307,-500.0,0.00055342,120]
[342799440,1732143068316,-1755.1,0.00055342,120]
[342799441,1732143068326,-500.0,0.00055342,120]
[342799442,1732143068335,-500.0,0.00055342,120]
[342799443,1732143068345,-500.0,0.00055342,120]
[342799444,1732143068354,-1021.42,0.00055342,120]
[342799445,1732143068363,-968.59,0.00055342,120]
[342799446,1732143068373,-500.0,0.00055342,120]
[342799447,1732143068382,-747.74,0.00055342,120]
[342799448,1732143068392,-500.0,0.00055342,120]
[342799449,1732143068403,-650.26,0.00055342,120]
[342799450,1732143068412,-552.66,0.00055342,120]
[342799451,1732143068422,-500.0,0.00055342,120]
[342799452,1732143068431,-528.53,0.00055342,120]
[342799453,1732143068440,-500.0,0.00055342,120]
[342799454,1732143068449,-661.12,0.00055342,120]
[342799455,1732143068459,-4504.33,0.00055342,120]
[342799456,1732143068468,-500.0,0.00055342,120]
[342799457,1732143068477,-500.0,0.00055342,120]
[342799458,1732143068487,-500.0,0.00055342,120]
[342799459,1732143068496,-398.88548055,0.00055342,120]
[342799460,1732143068505,-1414.7,0.00055342,120]
[342799461,1732143068514,-500.0,0.00055342,120]
[342799462,1732143068523,-1839.1,0.00055342,20]
[342799463,1732143068534,-500.0,0.00055342,120]
[342799464,1732143068543,-600.15,0.00055342,120]
[342799465,1732143068552,-500.0,0.00055342,120]
[342799466,1732143068562,-500.0,0.00055342,120]
[342799467,1732143068573,-500.0,0.00055342,120]
[342799468,1732143068582,-639.71,0.00055342,120]
[342799469,1732143068592,-500.0,0.00055342,120]
[342799470,1732143068603,-1685.02,0.00055342,120]
[342799471,1732143068614,-500.0,0.00055342,120]
[342799472,1732143068625,-507.85203463,0.00055342,120]
[342799473,1732143068634,-500.0,0.00055342,120]
[342799474,1732143068643,-500.0,0.00055342,120]
[342799475,1732143068656,-643.92,0.00055342,120]
[342799476,1732143068665,-1838.85,0.00055342,120]
[342799477,1732143068675,-500.0,0.00055342,120]
[342799478,1732143068684,-503.41,0.00055342,120]
[342799479,1732143068693,-777.36,0.00055342,120]
[342799480,1732143068703,-500.0,0.00055342,120]
[342799481,1732143068713,-500.0,0.00055342,120]
[342799482,1732143068723,-1088.52,0.00055342,120]
[342799483,1732143068732,-500.1101692,0.00055342,120]
[342799484,1732143068742,-3963.88,0.00055342,120]
[342799485,1732143068751,-500.0,0.00055342,120]
[342799486,1732143068760,-500.0,0.00055342,120]
[342799487,1732143068770,-500.0,0.00055342,120]
[342799488,1732143068779,-551.65297158,0.00055342,120]
[342799489,1732143068793,-500.0,0.00055342,120]
[342799490,1732143068804,-500.0,0.00055342,120]
[342799491,1732143068814,-500.0,0.00055342,120]
[342799492,1732143068824,-500.0,0.00055342,120]
[342799493,1732143068835,-500.0,0.00055342,120]
[342799494,1732143068845,-508.93,0.00055342,120]
[342799495,1732143068854,-500.0,0.00055342,120]
[342799496,1732143068864,-500.0,0.00055342,120]
[342799497,1732143068874,-500.0,0.00055342,120]
[342799498,1732143068887,-500.0,0.00055342,120]
[342799499,1732143068897,-500.0,0.00055342,120]
[342799500,1732143068907,-522.18,0.00055342,120]
[342799501,1732143068916,-674.72,0.00055342,120]
[342799502,1732143068926,-500.0,0.00055342,120]
[342799503,1732143068937,-500.0,0.00055342,120]
[342799504,1732143068949,-501.0160732,0.00055342,120]
[342799505,1732143068960,-1573.1,0.00055342,120]
[342799506,1732143068969,-500.0,0.00055342,120]
[342799507,1732143068978,-500.0,0.00055342,120]
[342799508,1732143068988,-500.0,0.00055342,120]
[342799509,1732143068997,-500.0,0.00055342,120]
[342799510,1732143069007,-1344.45,0.00055342,120]
[342799511,1732143069017,-500.0,0.00055342,120]
[342799512,1732143069027,-500.0,0.00055342,120]
[342799513,1732143069037,-695.34,0.00055342,120]
[342799514,1732143069047,-5030.76,0.00055342,120]
[342799515,1732143069057,-993.23,0.00055342,120]